bitfinex-derivatives/quotes_BTCF0:USTF0_20210109
["timestamp","ask_amount","ask_price","bid_price","bid_amount"]
[1610164851504,0.44244824,40156.0,40134.0,0.13632608]
[1610164851704,0.43094824,40156.0,40134.0,0.13632608]
[1610164851904,0.00030485,40155.0,40134.0,0.13632608]
[1610164852104,0.13632608,40135.0,40134.0,0.13632608]
[1610164852505,0.25536608,40135.0,40134.0,0.13632608]
[1610164853104,0.25536608,40135.0,40134.0,0.13655527]
[1610164854806,0.24306608,40135.0,40134.0,0.13655527]
[1610164857611,0.11904,40135.0,40134.0,0.13655527]
[1610164858012,0.10714,40135.0,40134.0,0.13655527]
[1610164858417,0.13632608,40139.0,40134.0,0.13655527]
[1610164858914,0.2944,40157.0,40135.0,0.00022919]
[1610164859115,0.00310385,40154.0,40135.0,0.00022919]
[1610164859515,0.00310827,40157.0,40135.0,0.00022919]
[1610164859915,0.09356,40159.0,40135.0,0.00022919]
[1610164860317,0.00311507,40163.0,40158.0,0.13632608]
[1610164860715,0.00311599,40164.0,40158.0,0.13632608]
[1610164860915,0.14841599,40166.0,40158.0,0.13632608]
[1610164861316,3.51062538,40167.0,40158.0,0.13632608]
[1610164861516,0.53428509,40164.0,40158.0,0.13632608]
[1610164861716,0.64866509,40164.0,40158.0,0.13632608]
[1610164861917,0.11438,40164.0,40158.0,0.13632608]
[1610164862318,0.13632608,40159.0,40158.0,0.13632608]
[1610164864121,0.12442608,40159.0,40158.0,0.13632608]
[1610164864421,0.12442608,40159.0,40158.0,0.13655519]
[1610164864824,0.12442608,40159.0,40158.0,0.13632608]
[1610164865024,0.12442608,40159.0,40142.0,4.1432]
[1610164865623,0.12442608,40159.0,40143.0,0.00022912]
[1610164866225,0.53522727,40160.0,40145.0,0.13632608]
[1610164866624,0.53507073,40161.0,40146.0,0.00022912]
[1610164866924,0.53505617,40162.0,40146.0,0.00022912]
[1610164867123,0.52315617,40162.0,40146.0,0.00022912]
[1610164867824,0.36533925,40163.0,40146.0,0.00022912]
[1610164868226,0.13632608,40147.0,40146.0,0.00022912]
[1610164868625,0.23222608,40147.0,40146.0,0.00022912]
[1610164869125,0.0959,40147.0,40146.0,0.00022912]
[1610164869527,0.0959,40147.0,40146.0,3.20402912]
[1610164869928,0.0959,40147.0,40146.0,3.2181936]
[1610164870429,0.084,40147.0,40146.0,3.2181936]
[1610164872231,0.084,40147.0,40146.0,0.0143936]
[1610164873131,0.084,40147.0,40146.0,0.00022912]
[1610164873333,0.0724,40147.0,40146.0,0.00022912]
[1610164873830,0.13632608,40163.0,40146.0,0.00022912]
[1610164874231,0.13632608,40163.0,40162.0,0.13632608]
[1610164874831,0.13632608,40163.0,40162.0,0.00022907]
[1610164875231,0.13632608,40163.0,40141.0,0.01439073]
[1610164875431,0.13632608,40163.0,40162.0,0.00022907]
[1610164875834,0.13632608,40163.0,40141.0,0.01439073]
[1610164876032,0.13632608,40163.0,40162.0,0.00022907]
[1610164876233,0.13632608,40163.0,40162.0,0.13632608]
[1610164876432,0.12402608,40163.0,40162.0,0.13632608]
[1610164876633,0.12402608,40163.0,40162.0,0.13655515]
[1610164877033,0.60472608,40163.0,40162.0,0.00022907]
[1610164877232,2.10472608,40163.0,40162.0,0.00022907]
[1610164877432,1.62402608,40163.0,40117.0,0.01439294]
[1610164877633,2.64578523,40163.0,40131.0,0.01416591]
[1610164877833,1.5,40150.0,40118.0,0.01439848]
[1610164878233,0.15720485,40149.0,40125.0,0.13632608]
[1610164878634,0.4982,40144.0,40126.0,0.0002292]
[1610164878833,0.00030485,40148.0,40126.0,0.0002292]
[1610164879034,3.6438,40144.0,40126.0,0.0002292]
[1610164879435,0.00342014,40142.0,40126.0,0.0002292]
[1610164879635,0.09268014,40142.0,40126.0,0.0002292]
[1610164880036,3.9734,40139.0,40126.0,0.0002292]
[1610164880234,3.9734,40139.0,40127.0,0.13632608]
[1610164880835,3.9734,40139.0,40128.0,0.00022922]
[1610164882037,0.44598079,40138.0,40128.0,0.00022922]
[1610164882237,0.13632608,40129.0,40128.0,0.00022922]
[1610164882640,0.21479608,40129.0,40128.0,0.00022922]
[1610164882840,0.20219608,40129.0,40128.0,0.00022922]
[1610164883041,4.35989608,40129.0,40128.0,0.00022922]
[1610164883439,4.35989608,40129.0,40101.0,0.01440633]
[1610164883641,4.35989608,40129.0,40101.0,0.01417711]
[1610164883642,5.85989608,40129.0,40101.0,0.01417711]
[1610164884040,0.2932,40128.0,40102.0,0.00022927]
[1610164884240,0.13632608,40103.0,40102.0,0.00022927]
[1610164884440,0.26425608,40103.0,40093.0,0.01441159]
[1610164884839,0.26425608,40103.0,40102.0,0.00022929]
[1610164885040,0.26425608,40103.0,40094.0,0.01441352]
[1610164885240,0.12793,40103.0,40102.0,0.00022931]
[1610164885639,0.12793,40103.0,40095.0,0.01441266]
[1610164885840,0.11643,40103.0,40102.0,0.00022931]
[1610164886040,0.11643,40103.0,40096.0,0.00022931]
[1610164886244,0.25275608,40103.0,40102.0,0.13655536]
[1610164888846,0.24075608,40103.0,40102.0,0.13655536]
[1610164889046,0.10443,40103.0,40102.0,0.13655536]
[1610164889446,3.0282,40121.0,40102.0,0.13655536]
[1610164889945,3.0282,40121.0,40103.0,0.00022928]
[1610164890345,3.0282,40121.0,40113.0,0.13632608]
[1610164890945,3.0282,40121.0,40086.0,3.2886]
[1610164891348,3.0282,40121.0,40087.0,0.00022928]
[1610164892049,3.016,40121.0,40087.0,0.00022928]
[1610164892448,3.016,40121.0,40101.0,0.13632608]
[1610164893248,3.016,40121.0,40086.0,3.2886]
[1610164893750,3.016,40121.0,40087.0,0.00022931]
[1610164894351,3.016,40121.0,40097.0,0.13632608]
[1610164895055,3.0044,40121.0,40097.0,0.13632608]
[1610164896356,0.13632608,40098.0,40097.0,0.13632608]
[1610164896557,0.24010608,40098.0,40097.0,0.13632608]
[1610164898156,0.22820608,40098.0,40097.0,0.13632608]
[1610164899757,0.22820608,40098.0,40079.0,3.2112]
[1610164900358,0.10378,40098.0,40092.0,0.13632608]
[1610164900559,0.57668,40098.0,40080.0,0.00022934]
[1610164900760,0.10378,40098.0,40069.0,0.11569]
[1610164900958,0.10378,40098.0,40064.0,2.9571]
[1610164900959,2.9824,40095.0,40064.0,2.9571]
[1610164901160,2.9824,40095.0,40081.0,0.00022941]
[1610164901360,2.9709,40095.0,40065.0,0.00022941]
[1610164901560,2.9709,40095.0,40082.0,0.00022941]
[1610164901960,2.9709,40095.0,40064.0,2.9571]
[1610164902361,2.9709,40095.0,40080.0,0.13632608]
[1610164903163,2.9709,40095.0,40081.0,0.00022946]
[1610164903362,0.2983,40097.0,40060.0,0.07919]
[1610164903562,3.5693,40082.0,40056.0,2.8641]
[1610164903763,3.68732,40082.0,40061.0,0.00022976]
[1610164903963,3.68732,40082.0,40057.0,0.00022976]
[1610164904163,3.68732,40082.0,40062.0,0.00022979]
[1610164904364,3.68732,40082.0,40067.0,0.13632608]
[1610164904563,3.67492,40082.0,40067.0,0.13632608]
[1610164904763,3.67492,40082.0,40068.0,0.00022979]
[1610164906367,0.11802,40082.0,40081.0,0.13632608]
[1610164907467,0.10612,40082.0,40081.0,0.13632608]
[1610164908870,0.2983,40097.0,40081.0,0.13632608]
[1610164909772,0.2983,40097.0,40082.0,0.00022969]
[1610164909972,0.2983,40097.0,40083.0,4.1117]
[1610164910172,0.10378,40098.0,40083.0,4.1117]
[1610164910373,0.13632608,40107.0,40097.0,0.13632608]
[1610164910572,0.12482608,40107.0,40097.0,0.13632608]
[1610164912482,0.12482608,40107.0,40106.0,0.13632608]
[1610164913579,0.11282608,40107.0,40106.0,0.13632608]
[1610164914383,0.2982,40114.0,40106.0,0.13632608]
[1610164914984,0.2982,40114.0,40107.0,0.5465]
[1610164915184,0.2982,40114.0,40106.0,0.13632608]
[1610164915384,0.10542,40114.0,40109.0,2.8056]
[1610164915786,0.10542,40114.0,40110.0,0.00022945]
[1610164916384,0.10542,40114.0,40113.0,0.13632608]
[1610164916785,0.09362,40114.0,40113.0,0.13655548]
[1610164917787,0.09362,40114.0,40109.0,2.75291133]
[1610164918188,0.09362,40114.0,40110.0,0.00022934]
[1610164918387,0.09362,40114.0,40113.0,0.13632608]
[1610164918888,0.07847,40129.0,40113.0,0.13655542]
[1610164919288,0.13632608,40132.0,40113.0,0.13655542]
[1610164919488,0.13632608,40132.0,40114.0,0.00022934]
[1610164919889,3.2294,40146.0,40114.0,0.00022934]
[1610164920090,0.4457588,40155.0,40114.0,0.00022934]
[1610164920290,0.4457588,40155.0,40119.0,4.1643]
[1610164920490,0.3195,40159.0,40146.0,0.13632608]
[1610164920491,0.2774,40152.0,40146.0,0.13632608]
[1610164920691,0.3772,40152.0,40146.0,0.13632608]
[1610164922395,0.3772,40152.0,40151.0,0.13632608]
[1610164922996,0.3653,40152.0,40151.0,0.13632608]
[1610164924798,0.3653,40152.0,40141.0,3.066]
[1610164924996,0.3653,40152.0,40111.0,0.5]
[1610164925198,0.3653,40152.0,40117.0,3.5713]
[1610164926000,0.3537,40152.0,40117.0,3.5713]
[1610164926500,0.3537,40152.0,40136.0,0.13632608]
[1610164926901,0.44832671,40151.0,40136.0,0.13632608]
[1610164927404,0.44838333,40150.0,40136.0,0.13632608]
[1610164927802,0.44817634,40148.0,40136.0,0.13632608]
[1610164928102,0.44837375,40150.0,40136.0,0.13632608]
[1610164928503,0.13632608,40137.0,40136.0,0.13632608]
[1610164928703,0.25834608,40137.0,40095.0,0.5]
[1610164928903,0.25834608,40137.0,40071.0,1.5]
[1610164928904,0.25834608,40137.0,40096.0,3.549]
[1610164929104,0.24654608,40137.0,40096.0,3.549]
[1610164929304,0.1569,40136.0,40096.0,3.54922938]
[1610164929505,0.1569,40136.0,40097.0,0.0002294]
[1610164930606,0.1569,40136.0,40125.0,0.13632608]
[1610164931907,1.5,40135.0,40085.0,0.5]
[1610164932107,1.5,40090.0,40077.0,0.5]
[1610164932310,1.5,40090.0,40036.0,3.15130909]
[1610164932311,4.09,40080.0,40054.0,2.40470713]
[1610164932511,0.13632608,40069.0,40054.0,2.40470713]
[1610164932709,0.5885,40055.0,40039.0,0.12588]
[1610164933108,0.07795,40058.0,40040.0,0.00022972]
[1610164933309,3.44865,40058.0,40040.0,0.00022972]
[1610164933911,3.44865,40058.0,40027.0,0.00022981]
[1610164934311,3.44865,40058.0,40041.0,0.00022981]
[1610164934513,0.07795,40058.0,40026.0,0.10948]
[1610164934712,0.13632608,40042.0,40025.0,0.13632608]
[1610164934912,0.22016608,40042.0,40025.0,0.13632608]
[1610164935114,0.20866608,40042.0,40025.0,0.13632608]
[1610164935912,3.82306608,40042.0,40025.0,0.13632608]
[1610164936512,3.82306608,40042.0,40016.0,0.10712]
[1610164936713,0.13632608,40026.0,40016.0,0.10712]
[1610164937515,0.13632608,40026.0,40013.0,0.13632608]
[1610164938013,0.12472608,40026.0,40013.0,0.13632608]
[1610164938214,0.12472608,40026.0,39972.0,2.39942127]
[1610164938413,2.877,40013.0,39972.0,2.39942127]
[1610164938614,2.877,40013.0,39998.0,0.13632608]
[1610164939416,2.877,40013.0,39994.0,0.11327]
[1610164940017,2.877,40013.0,39986.0,0.12431]
[1610164940415,0.07827,40020.0,39986.0,0.12431]
[1610164940617,0.07827,40020.0,39995.0,0.13632608]
[1610164941016,0.07827,40020.0,39996.0,0.4822]
[1610164941215,0.06647,40020.0,39995.0,0.13632608]
[1610164941616,0.06647,40020.0,39999.0,2.8804]
[1610164942015,0.06647,40020.0,39999.0,2.95885]
[1610164942216,0.06647,40020.0,39999.0,0.07845]
[1610164942615,0.13632608,40002.0,40001.0,0.13632608]
[1610164943016,0.13632608,40002.0,39999.0,0.07845]
[1610164943815,0.13632608,40002.0,39986.0,0.12431]
[1610164944215,0.12432608,40002.0,39986.0,0.12431]
[1610164944616,3.4072,40009.0,39994.0,0.13632608]
[1610164945820,0.09844,40011.0,39994.0,0.13632608]
[1610164946420,0.09844,40011.0,39994.0,0.11086]
[1610164946821,0.09844,40011.0,40007.0,0.13632608]
[1610164947223,0.09844,40011.0,39994.0,0.11086]
[1610164947421,0.08614,40011.0,39994.0,0.11086]
[1610164948222,0.08614,40011.0,39986.0,3.2027]
[1610164948821,0.13632608,39993.0,39992.0,0.13632608]
[1610164949422,0.08614,40011.0,39992.0,0.13632608]
[1610164949821,0.285,40019.0,39992.0,0.13632608]
[1610164950624,0.2727,40019.0,39992.0,0.13632608]
[1610164950823,0.2727,40019.0,40004.0,0.13632608]
[1610164951024,0.2727,40019.0,39990.0,0.08063]
[1610164951627,0.2727,40019.0,39986.0,3.2027]
[1610164952826,0.2727,40019.0,39992.0,0.13632608]
[1610164953427,0.00030576,40018.0,39992.0,0.13632608]
[1610164953627,0.26150576,40019.0,39992.0,0.13632608]
[1610164953828,0.26150576,40019.0,39980.0,0.10408]
[1610164954027,3.4174,40000.0,39975.0,0.11706]
[1610164954227,0.09048,40000.0,39975.0,0.11706]
[1610164954832,0.13632608,39976.0,39975.0,0.11706]
[1610164955231,0.13632608,39976.0,39961.0,0.13632608]
[1610164956433,0.09467,39980.0,39961.0,0.13632608]
[1610164956833,0.08237,39980.0,39966.0,0.13632608]
[1610164957034,0.08237,39980.0,39947.0,3.90584]
[1610164958135,0.08237,39980.0,39947.0,0.07704]
[1610164958338,4.0788,39972.0,39947.0,0.07704]
[1610164958737,4.18879,39972.0,39947.0,0.07704]
[1610164958935,4.18879,39972.0,39966.0,0.13632608]
[1610164959834,4.18879,39972.0,39947.0,0.07704]
[1610164960035,0.10999,39972.0,39947.0,0.07704]
[1610164960236,3.2397,39951.0,39913.0,2.9032]
[1610164960437,0.12713,39959.0,39902.0,0.5]
[1610164960636,3.4089,39941.0,39902.0,0.10666]
[1610164960840,3.54522608,39941.0,39940.0,0.13632608]
[1610164961237,0.12713,39959.0,39940.0,0.13632608]
[1610164962837,0.12713,39959.0,39958.0,0.13632608]
[1610164963038,0.11533,39959.0,39958.0,0.13632608]
[1610164963440,0.11533,39959.0,39939.0,0.08185]
[1610164964940,0.11533,39959.0,39958.0,0.13632608]
[1610164965540,3.7426,39970.0,39958.0,0.13632608]
[1610164965739,0.10999,39972.0,39958.0,0.13632608]
[1610164965944,0.08237,39980.0,39958.0,0.13632608]
[1610164966141,4.1702,39990.0,39958.0,0.13632608]
[1610164966340,4.1582,39990.0,39958.0,0.13632608]
[1610164966942,4.1582,39990.0,39952.0,0.10304]
[1610164967143,4.24552,39990.0,39952.0,0.10304]
[1610164967544,4.24552,39990.0,39974.0,0.13632608]
[1610164968344,4.24552,39990.0,39952.0,0.10304]
[1610164969344,4.23372,39990.0,39952.0,0.10304]
[1610164969544,0.08732,39990.0,39989.0,0.13632608]
[1610164970544,0.35407292,40032.0,39989.0,0.13632608]
[1610164970545,0.06116979,40031.0,39989.0,0.13632608]
[1610164970945,0.44582135,40032.0,39989.0,0.13632608]
[1610164971145,0.03088445,40030.0,39989.0,0.13632608]
[1610164971344,0.09737,40030.0,39989.0,0.13632608]
[1610164971544,0.21788608,40006.0,40005.0,0.13632608]
[1610164972145,0.21788608,40006.0,39984.0,2.8238]
[1610164972344,0.08156,40006.0,39984.0,2.8238]
[1610164973545,0.08156,40006.0,40005.0,0.13632608]
[1610164974146,0.08156,40006.0,39984.0,2.8238]
[1610164974347,0.08156,40006.0,39979.0,0.09031]
[1610164974748,0.08156,40006.0,39971.0,0.11014]
[1610164975348,0.50506,40006.0,39967.0,2.9125]
[1610164975550,0.08587,39982.0,39974.0,0.13632608]
[1610164977452,0.08587,39982.0,39981.0,0.13632608]
[1610164977854,0.13632608,39995.0,39981.0,0.13632608]
[1610164978255,0.12472608,39995.0,39981.0,0.13632608]
[1610164979453,0.13632608,39982.0,39967.0,0.13632608]
[1610164979852,0.24350608,39982.0,39967.0,0.13632608]
[1610164981255,0.23200608,39982.0,39967.0,0.13632608]
[1610164981455,0.10718,39982.0,39971.0,0.13632608]
[1610164981655,0.10718,39982.0,39954.0,3.0562]
[1610164983558,0.10718,39982.0,39975.0,0.13632608]
[1610164984462,0.09558,39982.0,39975.0,0.13632608]
[1610164984862,0.10272,39995.0,39975.0,0.13632608]
[1610164985263,0.15296269,39996.0,39975.0,0.13632608]
[1610164985463,0.13632608,39976.0,39975.0,0.13632608]
[1610164985662,0.13632608,39976.0,39954.0,3.0562]
[1610164986264,0.22838608,39976.0,39933.0,0.7832]
[1610164986468,0.22838608,39976.0,39935.0,3.2716]
[1610164987465,0.09206,39976.0,39965.0,0.13632608]
[1610164989568,0.09206,39976.0,39975.0,0.13632608]
[1610164989770,0.09206,39976.0,39966.0,0.00023226]
[1610164990168,0.09206,39976.0,39951.0,3.702]
[1610164990368,0.09206,39976.0,39967.0,0.00023226]
[1610164990571,0.07976,39976.0,39952.0,0.00023226]
[1610164990971,0.07976,39976.0,39968.0,0.00023226]
[1610164991172,4.0013,39980.0,39953.0,0.00023228]
[1610164991370,4.0013,39980.0,39945.0,0.09516]
[1610164991573,4.0013,39980.0,39970.0,0.13632608]
[1610164991974,4.0013,39980.0,39945.0,0.09516]
[1610164992573,4.09202,39980.0,39946.0,0.00023228]
[1610164992771,0.09072,39980.0,39946.0,0.00023228]
[1610164992972,3.455,39967.0,39946.0,0.00023228]
[1610164993374,3.54513,39967.0,39946.0,0.00023228]
[1610164993574,3.54513,39967.0,39950.0,0.13632608]
[1610164993973,0.09013,39967.0,39951.0,0.00023232]
[1610164994572,0.09013,39967.0,39951.0,0.01518428]
[1610164995173,0.09013,39967.0,39951.0,0.00023232]
[1610164995374,0.09013,39967.0,39952.0,0.00023232]
[1610164995573,0.09013,39967.0,39954.0,0.13632608]
[1610164996173,0.09013,39967.0,39955.0,0.00023232]
[1610164996374,0.4288,39966.0,39955.0,0.00023232]
[1610164996773,0.09013,39967.0,39955.0,0.00023232]
[1610164996976,0.07853,39967.0,39955.0,0.00023232]
[1610164997174,3.9505,39964.0,39955.0,0.00023232]
[1610164997574,0.07853,39967.0,39955.0,0.00023232]
[1610164998576,0.2837,39979.0,39955.0,0.00023232]
[1610164999577,0.2837,39979.0,39967.0,0.13632608]
[1610164999974,0.2718,39979.0,39967.0,0.13632608]
[1610165000176,0.2718,39979.0,39968.0,0.00023226]
[1610165001582,0.13632608,39969.0,39968.0,0.00023226]
[1610165001783,0.23842608,39969.0,39968.0,0.00023226]
[1610165002484,0.71152608,39969.0,39968.0,0.00023226]
[1610165002985,0.71152608,39969.0,39939.0,0.01518179]
[1610165003185,0.22642608,39969.0,39939.0,0.01494951]
[1610165003585,3.0609,39968.0,39956.0,0.13632608]
[1610165003986,3.0609,39968.0,39957.0,0.00023228]
[1610165004286,3.0609,39968.0,39957.0,0.01518212]
[1610165004687,0.1021,39969.0,39957.0,0.01518212]
[1610165005689,3.9339,39968.0,39966.0,0.13632608]
[1610165006090,3.9339,39968.0,39967.0,0.00023228]
[1610165006288,3.9221,39968.0,39967.0,0.00023228]
[1610165006489,3.9221,39968.0,39958.0,0.01518274]
[1610165006689,3.9221,39968.0,39967.0,0.00023228]
[1610165006889,3.9221,39968.0,39959.0,0.00023228]
[1610165007290,0.1021,39969.0,39937.0,0.01518842]
[1610165007493,0.1021,39969.0,39963.0,0.13632608]
[1610165007690,0.2718,39979.0,39963.0,0.13632608]
[1610165007992,0.2718,39979.0,39964.0,0.0151868]
[1610165009290,0.2599,39979.0,39964.0,0.0151868]
[1610165009690,0.13632608,39965.0,39964.0,0.00023233]
[1610165009895,0.13632608,39965.0,39956.0,0.13632608]
[1610165010091,0.26094608,39965.0,39964.0,0.00023236]
[1610165010491,0.26094608,39965.0,39957.0,0.01518928]
[1610165010691,0.26094608,39965.0,39964.0,0.00023236]
[1610165010890,0.26094608,39965.0,39958.0,0.00023234]
[1610165011291,0.26094608,39965.0,39964.0,0.00023234]
[1610165011490,0.26094608,39965.0,39959.0,0.00023234]
[1610165011692,0.26094608,39965.0,39964.0,0.13655842]
[1610165011892,0.26094608,39965.0,39964.0,0.13632608]
[1610165012194,0.26094608,39965.0,39964.0,0.15151516]
[1610165012493,0.24864608,39965.0,39964.0,0.15151516]
[1610165012696,0.24864608,39965.0,39964.0,0.13655844]
[1610165015595,0.23674608,39965.0,39964.0,0.13655844]
[1610165015997,0.23674608,39965.0,39964.0,0.15151504]
[1610165018800,0.22494608,39965.0,39964.0,0.15151504]
[1610165021904,0.21304608,39965.0,39964.0,0.15151504]
[1610165024108,0.12462,39965.0,39964.0,0.15151504]
[1610165024309,0.09072,39980.0,39964.0,0.15151504]
[1610165024508,0.00756279,39981.0,39964.0,0.15151504]
[1610165024907,0.88508785,39982.0,39965.0,0.01515991]
[1610165025112,0.42466009,39982.0,39978.0,4.1423]
[1610165025708,0.42466009,39982.0,39981.0,0.13632608]
[1610165026310,0.42466009,39982.0,39981.0,0.15146954]
[1610165028015,0.41276009,39982.0,39981.0,0.15146954]
[1610165028616,0.41276009,39982.0,39981.0,0.13655814]
[1610165029116,0.41276009,39982.0,39981.0,0.15146497]
[1610165029717,0.41276009,39982.0,39981.0,0.13655814]
[1610165030917,0.41276009,39982.0,39981.0,0.00023206]
[1610165031117,0.40086009,39982.0,39981.0,0.00023206]
[1610165031517,0.40086009,39982.0,39975.0,0.00022322]
[1610165031717,0.40086009,39982.0,39981.0,0.00022326]
[1610165031920,0.40086009,39982.0,39979.0,0.13632608]
[1610165033123,0.40086009,39982.0,39980.0,0.00022326]
[1610165034122,0.38886009,39982.0,39980.0,0.00022326]
[1610165034322,0.38886009,39982.0,39979.0,0.13632608]
[1610165035726,0.13632608,39980.0,39979.0,0.13632608]
[1610165035925,0.13632608,39980.0,39957.0,3.96]
[1610165036124,0.22099608,39980.0,39957.0,3.96]
[1610165036525,0.22099608,39980.0,39965.0,0.00022331]
[1610165036724,0.22099608,39980.0,39958.0,0.00022331]
[1610165037125,0.08467,39980.0,39966.0,0.00022331]
[1610165037327,0.07317,39980.0,39959.0,0.12001331]
[1610165037527,0.07317,39980.0,39967.0,0.00022329]
[1610165037728,0.07317,39980.0,39959.0,0.11979]
[1610165037729,0.07317,39980.0,39979.0,0.13632608]
[1610165038130,0.07317,39980.0,39959.0,0.11979]
[1610165038531,0.07317,39980.0,39960.0,0.00022333]
[1610165039732,0.07317,39980.0,39970.0,0.13632608]
[1610165040333,0.06127,39980.0,39970.0,0.13632608]
[1610165040936,0.06127,39980.0,39971.0,0.00022334]
[1610165041136,0.38886009,39982.0,39971.0,0.00022334]
[1610165041737,0.13632608,39972.0,39971.0,0.00022334]
[1610165043542,0.12422608,39972.0,39971.0,0.00022334]
[1610165044738,0.12422608,39972.0,39942.0,4.1789]
[1610165044940,2.9996,39968.0,39923.0,2.42645382]
[1610165045138,2.9996,39968.0,39943.0,0.0122036]
[1610165045539,2.9996,39968.0,39943.0,0.10027]
[1610165045739,0.2881,39967.0,39947.0,0.13632608]
[1610165046143,0.37384,39967.0,39947.0,0.13632608]
[1610165046341,0.37384,39967.0,39948.0,0.00022343]
[1610165046540,0.36204,39967.0,39948.0,0.00022343]
[1610165047943,0.11566,39951.0,39948.0,0.00022343]
[1610165048543,0.11566,39951.0,39947.0,0.13632608]
[1610165048943,0.11566,39951.0,39948.0,0.00022345]
[1610165049644,0.10366,39951.0,39948.0,0.00022345]
[1610165050845,0.36204,39967.0,39948.0,0.00022345]
[1610165051745,0.36204,39967.0,39966.0,0.13632608]
[1610165052346,0.36204,39967.0,39966.0,0.1365494]
[1610165052746,0.35034,39967.0,39966.0,0.1365494]
[1610165053945,0.35034,39967.0,39966.0,0.13632608]
[1610165054147,0.35034,39967.0,39966.0,0.13654943]
[1610165054347,0.35034,39967.0,39966.0,0.13632608]
[1610165055149,0.35034,39967.0,39935.0,0.07943]
[1610165055350,0.35034,39967.0,39927.0,0.12272]
[1610165055549,0.35034,39967.0,39921.0,3.3388]
[1610165055750,0.33844,39967.0,39961.0,0.13632608]
[1610165056750,0.33844,39967.0,39928.0,0.10967]
[1610165057352,0.33844,39967.0,39929.0,0.01221002]
[1610165057754,0.33844,39967.0,39966.0,0.13632608]
[1610165058355,0.08574,39967.0,39966.0,0.13632608]
[1610165058555,0.13632608,39970.0,39966.0,0.13632608]
[1610165058756,0.07973,39978.0,39966.0,0.13632608]
[1610165058958,0.06773,39978.0,39966.0,0.13632608]
[1610165059155,0.06773,39978.0,39967.0,0.00022338]
[1610165059356,0.38886009,39982.0,39967.0,0.00022338]
[1610165059757,0.38886009,39982.0,39981.0,0.13632608]
[1610165060359,0.38886009,39982.0,39950.0,0.1258]
[1610165060558,0.38886009,39982.0,39981.0,0.00022329]
[1610165060758,0.38886009,39982.0,39951.0,0.01219897]
[1610165060961,0.38886009,39982.0,39981.0,0.00022331]
[1610165061361,0.38886009,39982.0,39952.0,0.00022334]
[1610165061563,0.38886009,39982.0,39981.0,0.00022334]
[1610165061761,0.52518617,39982.0,39976.0,0.13632608]
[1610165061960,0.51328617,39982.0,39976.0,0.13632608]
[1610165062362,0.51328617,39982.0,39977.0,0.00022337]
[1610165062761,0.52830247,39982.0,39977.0,0.00022337]
[1610165063361,0.01501468,39981.0,39977.0,0.00022337]
[1610165063761,0.13632608,39978.0,39977.0,0.00022337]
[1610165063960,0.25636608,39978.0,39977.0,0.00022337]
[1610165065062,0.24456608,39978.0,39977.0,0.00022337]
[1610165066364,0.24456608,39978.0,39904.0,0.2954]
[1610165066365,0.24456608,39978.0,39937.0,2.8519]
[1610165066566,0.01501606,39975.0,39937.0,2.94745277]
[1610165066767,0.01501606,39975.0,39938.0,0.01220865]
[1610165066965,3.5197,39971.0,39938.0,0.01220865]
[1610165067164,1.5,39970.0,39938.0,0.01220865]
[1610165067770,0.10588,39970.0,39949.0,0.13632608]
[1610165067968,0.56630979,39970.0,39949.0,0.13632608]
[1610165068167,0.55430979,39970.0,39950.0,0.00022346]
[1610165068368,0.01498756,39969.0,39950.0,0.00022346]
[1610165068768,0.09388,39970.0,39950.0,0.00022346]
[1610165068968,0.09388,39970.0,39950.0,0.01220818]
[1610165069969,0.13632608,39965.0,39964.0,0.13632608]
[1610165070469,0.13632608,39965.0,39964.0,0.1365495]
[1610165071270,0.12452608,39965.0,39964.0,0.00022342]
[1610165071772,0.12452608,39965.0,39941.0,0.01220969]
[1610165071973,0.12452608,39965.0,39961.0,0.13632608]
[1610165072172,0.12452608,39965.0,39964.0,0.00022346]
[1610165072374,0.12452608,39965.0,39962.0,0.00022346]
[1610165072573,0.12452608,39965.0,39964.0,0.00022346]
[1610165072975,0.12452608,39965.0,39963.0,0.00022346]
[1610165073174,0.12452608,39965.0,39964.0,0.00022346]
[1610165073574,0.12452608,39965.0,39962.0,0.00022346]
[1610165074376,0.11262608,39965.0,39962.0,0.00022346]
[1610165074976,0.10892199,39970.0,39962.0,0.00022346]
[1610165075177,0.09388,39970.0,39962.0,0.00022346]
[1610165075378,0.46265509,39976.0,39962.0,0.00022346]
[1610165075578,0.13512086,39978.0,39962.0,0.00022346]
[1610165075979,0.12004,39978.0,39962.0,0.00022346]
[1610165076381,0.46336065,39979.0,39962.0,0.00022346]
[1610165076580,0.46336065,39979.0,39943.0,0.01220735]
[1610165076781,0.01507612,39976.0,39963.0,0.00022342]
[1610165077184,0.01507176,39974.0,39944.0,0.00022342]
[1610165077384,0.01507176,39974.0,39964.0,0.00022342]
[1610165077586,0.00317176,39974.0,39945.0,0.00022342]
[1610165077984,0.00317176,39974.0,39965.0,0.00022345]
[1610165078186,0.44724661,39970.0,39959.0,0.13632608]
[1610165078386,0.53062661,39970.0,39959.0,0.13632608]
[1610165078786,0.53062661,39970.0,39960.0,0.00022347]
[1610165079390,0.08338,39970.0,39960.0,0.00022347]
[1610165079987,0.08338,39970.0,39969.0,0.13632608]
[1610165080589,0.07158,39970.0,39969.0,0.13654947]
[1610165083292,4.1605,39972.0,39969.0,0.00022339]
[1610165083692,4.1486,39972.0,39937.0,0.04301453]
[1610165083893,0.0003062,39971.0,39970.0,0.00022345]
[1610165084294,0.0003062,39971.0,39959.0,0.13632608]
[1610165084295,0.0758062,39971.0,39959.0,0.13632608]
[1610165084492,0.0003062,39971.0,39970.0,0.00022357]
[1610165084693,4.59442985,39972.0,39960.0,0.00022357]
[1610165084896,0.44567765,39973.0,39960.0,0.00022357]
[1610165085092,0.1245362,39971.0,39970.0,0.00022357]
[1610165085293,3.61433,39971.0,39961.0,0.00022357]
[1610165085495,4.06012782,39971.0,39959.0,0.13632608]
[1610165085894,0.44537877,39970.0,39962.0,0.00022359]
[1610165086092,0.44537877,39970.0,39960.0,0.00022361]
[1610165086292,0.44537877,39970.0,39963.0,0.00022361]
[1610165086693,0.43357877,39970.0,39961.0,0.00022361]
[1610165086893,0.43357877,39970.0,39964.0,0.00022361]
[1610165087093,0.43357877,39970.0,39962.0,0.00022361]
[1610165087496,0.43357877,39970.0,39965.0,0.00022361]
[1610165087693,0.43357877,39970.0,39963.0,0.00022361]
[1610165087893,0.12423,39971.0,39966.0,0.00022359]
[1610165088093,0.12423,39971.0,39964.0,0.13632608]
[1610165088094,0.12423,39971.0,39964.0,0.13654967]
[1610165088494,0.12423,39971.0,39965.0,0.00022359]